[Event "Prague Open 2024"]
[Site "Prague"]
[Date "2024.01.09"]
[Round "6.9"]
[White "Pyrig, Roman"]
[Black "Morchiashvili, Bachana"]
[Result "1-0"]
[ECO "B41"]
[WhiteElo "2154"]
[BlackElo "2295"]
[Annotator "RC"]
[PlyCount "67"]
[EventDate "2024.01.02"]
[EventType "swiss"]
[EventCountry "CZE"]
[SourceTitle "playchess.com"]
[Source "ChessBase"]
[SourceQuality "1"]
[TimeControl "40/5400+30:1800+30"]

1. e4 {[%emt 0:02:54]} c5 {[%emt 0:00:03]} 2. Nf3 {[%emt 0:00:07]} e6 {[%emt 0:00:16]} 3. d4 {[%emt 0:00:05]} cxd4 {[%emt 0:00:05]} 4. Nxd4 {[%emt 0:00:03]} a6 {[%emt 0:00:14]} 5. c4 {[%emt 0:00:06]} Nf6 {[%emt 0:00:08]} 6. Nc3 {[%emt 0:00:08]} Qc7 {[%emt 0:00:08]} 7. a3 {[%emt 0:00:06]} b6 {[%emt 0:00:31]} 8. Be2 {[%emt 0:08:17]} Bb7 {[%emt 0:00:18]} 9. f3 {[%emt 0:00:02]} Be7 {[%emt 0:04:32]} 10. Be3 {[%emt 0:00:25]} O-O {[%emt 0:00:18]} 11. Rc1 {[%emt 0:00:07]} d6 {[%emt 0:00:24]} 12. Kd2 {[%emt 0:03:58]} Nbd7 {[%emt 0:02:11]} 13. Kc2 {[%emt 0:00:23]} Rac8 {[%emt 0:21:23]} 14. Kb1 {[%emt 0:00:23]} Ne5 {[%emt 0:03:58]} 15. g4 {[%emt 0:00:03]} Qd8 {[%emt 0:02:08]} 16. Qf1 {[%emt 0:04:28]} Re8 {[%emt 0:07:14]} 17. g5 {[%emt 0:04:05]} Nfd7 {[%emt 0:00:09]} 18. h4 {[%emt 0:01:39]} Bf8 {[%emt 0:04:04]} 19. h5 {[%emt 0:00:24]} d5 {[%emt 0:08:40]} 20. cxd5 {[%emt 0:04:17]} exd5 {[%emt 0:00:07]} 21. Nxd5 {[%emt 0:00:07]} Bxd5 {[%emt 0:01:04]} 22. exd5 {[%emt 0:00:02]} Nc5 {[%emt 0:02:19]} 23. f4 {[%emt 0:02:48]} Ned3 {[%emt 0:03:20]} 24. Bxd3 {[%emt 0:00:02]} Rxe3 {[%emt 0:00:04]} 25. Bf5 {[%emt 0:03:07]} Qxd5 {[%emt 0:00:08]} 26. Bxc8 {[%emt 0:00:23]} Qxd4 {[%emt 0:00:02]} 27. Qc4 {[%emt 0:00:17]} Qd8 {[%emt 0:00:34]} 28. g6 {[%emt 0:04:49]} hxg6 {[%emt 0:05:39]} 29. hxg6 {[%emt 0:00:15]} Qd3+ {[%emt 0:00:07]} 30. Qxd3 {[%emt 0:00:34]} Rxd3 {[%emt 0:00:02]} 31. Bf5 {[%emt 0:01:18]} Rd6 {[%emt 0:02:47]} 32. b4 {[%emt 0:01:09]} Na4 {[%emt 0:00:15]} 33. Rc8 {[%emt 0:00:12]} fxg6 {[%emt 0:02:18]} 34. Bc2 {[%emt 0:00:03]} 1-0

[Event "Prague Open 2024"]
[Site "Prague"]
[Date "2024.01.09"]
[Round "6.10"]
[White "Kirtadze, Anastasia"]
[Black "Keller, Peter"]
[Result "0-1"]
[ECO "C95"]
[WhiteElo "1981"]
[BlackElo "2289"]
[Annotator "RC"]
[PlyCount "120"]
[EventDate "2024.01.02"]
[EventType "swiss"]
[EventCountry "CZE"]
[SourceTitle "playchess.com"]
[Source "ChessBase"]
[SourceQuality "1"]
[TimeControl "40/5400+30:1800+30"]

1. e4 {[%emt 0:00:01]} e5 {[%emt 0:13:00]} 2. Nf3 {[%emt 0:00:03]} Nc6 {[%emt 0:00:05]} 3. Bb5 {[%emt 0:00:03]} a6 {[%emt 0:00:04]} 4. Ba4 {[%emt 0:00:04]} Nf6 {[%emt 0:00:04]} 5. O-O {[%emt 0:00:24]} Be7 {[%emt 0:00:10]} 6. Re1 {[%emt 0:00:06]} b5 {[%emt 0:00:06]} 7. Bb3 {[%emt 0:00:03]} d6 {[%emt 0:00:04]} 8. c3 {[%emt 0:00:18]} O-O {[%emt 0:00:08]} 9. h3 {[%emt 0:00:49]} Nb8 {[%emt 0:00:07]} 10. d4 {[%emt 0:00:38]} Nbd7 {[%emt 0:00:06]} 11. Nbd2 {[%emt 0:03:00]} Bb7 {[%emt 0:00:17]} 12. Bc2 {[%emt 0:00:34]} Re8 {[%emt 0:00:12]} 13. Nf1 {[%emt 0:00:28]} Bf8 {[%emt 0:00:05]} 14. Ng3 {[%emt 0:00:11]} a5 {[%emt 0:00:09]} 15. a3 {[%emt 0:05:42]} a4 {[%emt 0:02:05]} 16. Bd3 {[%emt 0:01:21]} Ba6 {[%emt 0:04:21]} 17. Nf5 {[%emt 0:04:37]} c5 {[%emt 0:02:45]} 18. d5 {[%emt 0:01:19]} c4 {[%emt 0:02:16]} 19. Bc2 {[%emt 0:00:51]} Nc5 {[%emt 0:00:31]} 20. g4 {[%emt 0:02:56]} Kh8 {[%emt 0:04:22]} 21. Ng5 {[%emt 0:09:28]} Ra7 {[%emt 0:00:37]} 22. Be3 {[%emt 0:01:13]} g6 {[%emt 0:07:24]} 23. Ng3 {[%emt 0:01:49]} Bc8 {[%emt 0:06:15]} 24. Qd2 {[%emt 0:08:05]} Ng8 {[%emt 0:04:12]} 25. f4 {[%emt 0:10:08]} exf4 {[%emt 0:04:26]} 26. Bd4+ {[%emt 0:03:22]} Bg7 {[%emt 0:02:10]} 27. Qxf4 {[%emt 0:00:27]} f6 {[%emt 0:01:31]} 28. Nf3 {[%emt 0:00:32]} Nh6 {[%emt 0:01:34]} 29. g5 {[%emt 0:03:40]} fxg5 {[%emt 0:00:48]} 30. Nxg5 {[%emt 0:00:31]} Rf8 {[%emt 0:00:27]} 31. Qh4 {[%emt 0:01:01]} Kg8 {[%emt 0:02:24]} 32. e5 {[%emt 0:07:20]} Raf7 {[%emt 0:00:08]} 33. Rf1 {[%emt 0:19:26]} dxe5 {[%emt 0:03:19]} 34. Bxe5 {[%emt 0:03:37]} Rxf1+ {[%emt 0:00:37]} 35. Rxf1 {[%emt 0:00:19]} Rxf1+ {[%emt 0:00:23]} 36. Nxf1 {[%emt 0:00:15]} Bxe5 {[%emt 0:10:55]} 37. Qxh6 {[%emt 0:00:03]} Qe7 {[%emt 0:00:04]} 38. Nf3 {[%emt 0:06:37]} Bg7 {[%emt 0:00:21]} 39. Qd2 {[%emt 0:00:22]} Bxh3 {[%emt 0:01:34]} 40. d6 {[%emt 0:00:28]} Qf7 {[%emt 0:00:15]} 41. N1h2 {[%emt 0:30:39]} Bd7 {[%emt 0:34:37]} 42. Qf2 {[%emt 0:06:46]} Qd5 {[%emt 0:01:41]} 43. Qh4 {[%emt 0:00:00]} Qxd6 {[%emt 0:00:00]} 44. Ng5 {[%emt 0:00:00]} h6 {[%emt 0:00:00]} 45. Ne4 {[%emt 0:00:00]} Nxe4 {[%emt 0:00:00]} 46. Bxe4 {[%emt 0:00:00]} Kh7 {[%emt 0:00:00]} 47. Nf3 {[%emt 0:00:00]} Bf6 {[%emt 0:00:00]} 48. Qf2 {[%emt 0:00:00]} Kg7 {[%emt 0:00:00]} 49. Qa7 {[%emt 0:00:00]} Bd8 {[%emt 0:00:00]} 50. Kg2 {[%emt 0:00:00]} Bb6 {[%emt 0:00:00]} 51. Qb7 {[%emt 0:00:00]} Bc7 {[%emt 0:00:00]} 52. Kf2 {[%emt 0:00:00]} Qb6+ {[%emt 0:00:00]} 53. Qxb6 {[%emt 0:00:00]} Bxb6+ {[%emt 0:00:00]} 54. Ke2 {[%emt 0:00:00]} Kf6 {[%emt 0:00:00]} 55. Nd2 {[%emt 0:00:00]} g5 {[%emt 0:00:00]} 56. Bf3 {[%emt 0:00:00]} Ke5 {[%emt 0:00:00]} 57. Bh5 {[%emt 0:00:00]} Kf4 {[%emt 0:00:00]} 58. Bg6 {[%emt 0:00:00]} Bc6 {[%emt 0:00:00]} 59. Bh5 {[%emt 0:00:00]} g4 {[%emt 0:00:00]} 60. Nf1 {[%emt 0:00:00]} g3 {[%emt 0:00:00]} 0-1

[Event "Prague Open 2024"]
[Site "Prague"]
[Date "2024.01.09"]
[Round "6.11"]
[White "Vojta, Jakub"]
[Black "Arndt, Stefan"]
[Result "1/2-1/2"]
[ECO "C90"]
[WhiteElo "2261"]
[BlackElo "2130"]
[Annotator "TA"]
[PlyCount "110"]
[EventDate "2024.01.02"]
[EventType "swiss"]
[EventCountry "CZE"]
[SourceTitle "playchess.com"]
[Source "ChessBase"]
[SourceQuality "1"]
[TimeControl "40/5400+30:1800+30"]

{[%evp 23,110,6,0,0,6,-3,-5,-20,0,0,0,0,0,0,0,0,0,0,0,5,11,-58,-46,-195,-203,-209,-206,-202,-190,-257,-258,-285,-291,-264,-163,-169,-124,-206,-104,-178,-170,-158,-175,-179,-95,-95,-91,-91,-74,-164,-83,-83,-81,-85,-85,-86,-86,-83,-82,-79,-64,-64,-64,-64,-64,-86,-86,-86,-33,-62,-25,-25,-25,-25,-25,-25,-25,-25,0,-25,-25,-25,0,0,0,0,0,0,0]} 1. e4 {[%emt 0:00:04]} e5 {[%emt 0:00:08]} 2. Nf3 {[%emt 0:00:05]} Nc6 {[%emt 0:00:04]} 3. Bb5 {[%emt 0:00:04]} a6 {[%emt 0:00:04]} 4. Ba4 {[%emt 0:00:04]} Nf6 {[%emt 0:00:12]} 5. O-O {[%emt 0:00:12]} Be7 {[%emt 0:00:10]} 6. Re1 {[%emt 0:00:10]} b5 {[%emt 0:00:09]} 7. Bb3 {[%emt 0:00:05]} d6 {[%emt 0:00:07]} 8. c3 {[%emt 0:00:05]} O-O {[%emt 0:00:08]} 9. d3 {[%emt 0:00:22]} Na5 {[%emt 0:00:43]} 10. Bc2 {[%emt 0:00:10]} c5 {[%emt 0:00:07]} 11. Nbd2 {[%emt 0:00:10][%cal Bb1d2,Bd2f1,Bf1g3][%mdl 32]} Nc6 {[%emt 0:00:12]} 12. Nf1 {[%emt 0:01:34]} h6 {[%emt 0:01:09]} 13. a4 {[%emt 0:01:16] axb5 would now be deadly.} Be6 {[%emt 0:00:46]} 14. Ng3 {[%emt 0:03:05]} Re8 {[%emt 0:01:19]} 15. h3 {[%emt 0:00:24]} Bf8 {[%emt 0:00:35]} 16. d4 {[%emt 0:04:14]} cxd4 {[%emt 0:03:21]} 17. cxd4 {[%emt 0:00:06]} exd4 {[%emt 0:00:14]} 18. Nxd4 {[%emt 0:00:49]} Nxd4 {[%emt 0:00:29]} 19. Qxd4 {[%emt 0:00:06]} Rc8 {[%emt 0:08:01]} 20. Bd3 {[%emt 0:00:24]} Bc4 {[%emt 0:01:12]} 21. axb5 {[%emt 0:07:04]} axb5 {[%emt 0:00:19]} 22. Bf4 {[%emt 0:09:24]} (22. b3 $11 Bxd3 23. Qxd3) 22... d5 $15 {[%emt 0:03:43]} 23. b3 {[%emt 0:12:46] [#]} Bc5 $1 $19 {[%emt 0:05:32]} (23... Bxb3 24. Bxb5 Re6 (24... dxe4 25. Qb2 $16) 25. e5 $14) 24. Qc3 {[%emt 0:00:12]} dxe4 {[%emt 0:04:38]} (24... b4 25. Qd2 Bd4 (25... Bxb3 26. e5 $15) (25... Bxd3 26. Qxd3 dxe4 27. Qxd8 $19) 26. Bxc4 (26. bxc4 $2 Bxa1 27. Qxb4 dxe4 $19)) 25. Bxc4 {[%emt 0:11:59]} bxc4 {[%emt 0:00:57]} ({Don't do} 25... Bd4 26. Bxf7+ Kxf7 27. Qb4 Bxa1 28. Rxa1) 26. Red1 {[%emt 0:15:58]} (26. Nf5 $142) 26... Qb6 {[%emt 0:00:58][%csl LRb3,LRf2]} 27. bxc4 {[%emt 0:00:03]} Bxf2+ {[%emt 0:00:08]} 28. Kh2 {[%emt 0:01:38]} Bxg3+ {[%emt 0:01:40]} 29. Bxg3 {[%emt 0:00:14]} Qc5 {[%emt 0:01:48]} 30. Rac1 {[%emt 0:03:54]} (30. Rd4 $17) 30... Re6 {[%emt 0:02:37]} (30... e3 $19 {Hoping for ...Ne4.} 31. Qd4 Ne4 32. Qxc5 Nxc5 (32... Rxc5 33. Bf4 $17)) 31. Rd4 {[%emt 0:03:23]} (31. Qd4 $17) 31... e3 {[%emt 0:03:14]} 32. Qd3 {[%emt 0:00:27]} Rce8 {[%emt 0:06:57]} 33. Re1 {[%emt 0:00:33]} Re4 {[%emt 0:02:21]} ({Better is} 33... Qg5 $19 {Strongly threatening ...Nh5.} 34. Bh4 Qa5) 34. Rxe4 $17 {[%emt 0:00:15]} Rxe4 {[%emt 0:00:06]} ({Of course not} 34... Nxe4 $6 35. Rxe3 f5 36. Re1 $11) 35. Bd6 {[%emt 0:00:15]} Qh5 {[%emt 0:15:59]} 36. c5 {[%emt 0:02:03]} (36. Kg1 $17 {keeps fighting.}) 36... Qh4 {[%emt 0:00:32]} ({Black should try} 36... Ng4+ $19 37. Kg1 Nf2) 37. Qe2 {[%emt 0:02:15]} Ng4+ {[%emt 0:09:53]} 38. Kg1 {[%emt 0:01:00]} Qf2+ {[%emt 0:05:52]} 39. Kh1 {[%emt 0:00:02]} Ne5 {[%emt 0:01:12]} 40. Bxe5 {[%emt 0:01:16]} Rxe5 {[%emt 0:00:06][%mdl 4096] Endgame. KQR-KQR} 41. c6 {[%emt 0:30:09]} Re7 {[%emt 0:34:50][%cal Oh6h5]} 42. c7 {[%emt 0:00:57]} Rxc7 {[%emt 0:00:18]} (42... Qf5 {looks sharper.} 43. Rc1 Qc8 44. Qg4 Re6) 43. Qxe3 {[%emt 0:00:06]} Qxe3 {[%emt 0:00:11]} 44. Rxe3 $15 {[%emt 0:00:05] KR-KR} g5 {[%emt 0:00:03]} 45. Kh2 {[%emt 0:00:25][%cal Oh3h4]} Kg7 {[%emt 0:00:05]} (45... Rc4 $17) 46. Ra3 {[%emt 0:00:24]} h5 {[%emt 0:00:27]} 47. h4 {[%emt 0:00:51]} gxh4 {[%emt 0:04:56]} 48. Ra4 {[%emt 0:00:22] Inhibits Rc4.} Kg6 {[%emt 0:00:09]} 49. Rxh4 {[%emt 0:00:06]} Rc2 {[%emt 0:00:12]} 50. Ra4 {[%emt 0:00:10]} Kg5 {[%emt 0:00:07]} 51. Ra8 {[%emt 0:00:24]} Rc6 {[%emt 0:00:41]} 52. Kh3 {[%emt 0:00:14]} h4 {[%emt 0:00:44]} 53. Rg8+ {[%emt 0:00:21] The position is equal.} Rg6 {[%emt 0:01:31]} 54. Rh8 {[%emt 0:00:14]} Re6 {[%emt 0:00:35]} 55. Rxh4 {[%emt 0:00:11]} Re3+ {Black had all chances to win.   Weighted Error Value: White=0.19 (very precise) /Black=0.18 (very precise) .  Mistake:       	White=6     	Black=4      Inaccurate:     	White=1     	Black=2      OK:         	White=17    	Black=9      Best:        	White=4     	Black=1      Strong:       	---       	Black=1} 1/2-1/2

[Event "Prague Open 2024"]
[Site "Prague"]
[Date "2024.01.09"]
[Round "6.12"]
[White "Shagbazyan, Taron"]
[Black "Wang, Yukun"]
[Result "1/2-1/2"]
[ECO "D45"]
[WhiteElo "2403"]
[BlackElo "2117"]
[Annotator "RC"]
[PlyCount "71"]
[EventDate "2024.01.02"]
[EventType "swiss"]
[EventCountry "CZE"]
[SourceTitle "playchess.com"]
[Source "ChessBase"]
[SourceQuality "1"]
[TimeControl "40/5400+30:1800+30"]

1. d4 {[%emt 0:13:25]} d5 {[%emt 0:00:01]} 2. c4 {[%emt 0:00:13]} c6 {[%emt 0:00:02]} 3. Nf3 {[%emt 0:00:08]} Nf6 {[%emt 0:00:05]} 4. Nc3 {[%emt 0:00:09]} e6 {[%emt 0:00:03]} 5. e3 {[%emt 0:00:13]} Nbd7 {[%emt 0:00:04]} 6. Qc2 {[%emt 0:00:10]} Bd6 {[%emt 0:00:06]} 7. Bd3 {[%emt 0:00:09]} dxc4 {[%emt 0:00:31]} 8. Bxc4 {[%emt 0:00:15]} O-O {[%emt 0:02:28]} 9. O-O {[%emt 0:02:51]} e5 {[%emt 0:00:17]} 10. b3 {[%emt 0:00:42]} Qe7 {[%emt 0:01:00]} 11. a4 {[%emt 0:00:47]} e4 {[%emt 0:21:53]} 12. Ng5 {[%emt 0:01:06]} Bxh2+ {[%emt 0:00:18]} 13. Kxh2 {[%emt 0:00:20]} Ng4+ {[%emt 0:00:01]} 14. Kg1 {[%emt 0:00:26]} Qxg5 {[%emt 0:00:08]} 15. Qxe4 {[%emt 0:00:14]} Ndf6 {[%emt 0:06:50]} 16. Qf4 {[%emt 0:01:15]} Qxf4 {[%emt 0:01:07]} 17. exf4 {[%emt 0:00:07]} Re8 {[%emt 0:00:55]} 18. Ba3 {[%emt 0:11:07]} Be6 {[%emt 0:01:14]} 19. Rfe1 {[%emt 0:02:27]} Rad8 {[%emt 0:01:30]} 20. Rad1 {[%emt 0:02:09]} h5 {[%emt 0:05:22]} 21. g3 {[%emt 0:07:34]} Nh6 {[%emt 0:05:36]} 22. Re5 {[%emt 0:17:33]} Nd7 {[%emt 0:11:57]} 23. Ra5 {[%emt 0:06:13]} Bxc4 {[%emt 0:13:12]} 24. bxc4 {[%emt 0:00:06]} Nb6 {[%emt 0:00:01]} 25. Rxa7 {[%emt 0:00:59]} Nxc4 {[%emt 0:00:02]} 26. Bb4 {[%emt 0:00:32]} b6 {[%emt 0:00:38]} 27. Rc7 {[%emt 0:01:51]} Rc8 {[%emt 0:01:14]} 28. Rxc8 {[%emt 0:01:22]} Rxc8 {[%emt 0:00:02]} 29. Rc1 {[%emt 0:03:29]} Nf5 {[%emt 0:00:35]} 30. Ne4 {[%emt 0:01:30]} Nb2 {[%emt 0:00:39]} 31. a5 {[%emt 0:13:08]} Nd3 {[%emt 0:01:05]} 32. Rb1 {[%emt 0:00:08]} Nxb4 {[%emt 0:00:10]} 33. Rxb4 {[%emt 0:00:04]} bxa5 {[%emt 0:00:03]} 34. Ra4 {[%emt 0:05:10]} Rd8 {[%emt 0:01:22]} 35. Rxa5 {[%emt 0:00:12]} Rd5 {[%emt 0:00:19]} 36. Rxd5 {[%emt 0:07:23]} 1/2-1/2

[Event "Prague Open 2024"]
[Site "Prague"]
[Date "2024.01.09"]
[Round "6.13"]
[White "Peglau, Charis"]
[Black "Neuman, Petr"]
[Result "0-1"]
[ECO "A41"]
[WhiteElo "1984"]
[BlackElo "2398"]
[Annotator "RC"]
[PlyCount "82"]
[EventDate "2024.01.02"]
[EventType "swiss"]
[EventCountry "CZE"]
[SourceTitle "playchess.com"]
[Source "ChessBase"]
[SourceQuality "1"]
[TimeControl "40/5400+30:1800+30"]

1. d4 {[%emt 0:00:03]} d6 {[%emt 0:00:09]} 2. c4 {[%emt 0:00:12]} e5 {[%emt 0:00:06]} 3. e3 {[%emt 0:00:41]} Nc6 {[%emt 0:01:15]} 4. Nc3 {[%emt 0:00:44]} g6 {[%emt 0:05:11]} 5. Nf3 {[%emt 0:03:06]} Bg7 {[%emt 0:00:14]} 6. Be2 {[%emt 0:01:50]} Bd7 {[%emt 0:01:01]} 7. O-O {[%emt 0:02:29]} f5 {[%emt 0:01:10]} 8. dxe5 {[%emt 0:04:58]} dxe5 {[%emt 0:01:05]} 9. e4 {[%emt 0:01:46]} f4 {[%emt 0:01:07]} 10. b3 {[%emt 0:01:36]} Bg4 {[%emt 0:02:09]} 11. Qxd8+ {[%emt 0:13:39]} Rxd8 {[%emt 0:04:40]} 12. Ng5 {[%emt 0:01:26]} Bd7 {[%emt 0:05:46]} 13. Nd5 {[%emt 0:03:14]} Rc8 {[%emt 0:00:08]} 14. Bb2 {[%emt 0:02:02]} h6 {[%emt 0:03:36]} 15. Nf3 {[%emt 0:02:16]} g5 {[%emt 0:00:05]} 16. h4 {[%emt 0:12:13]} Nge7 {[%emt 0:09:11]} 17. hxg5 {[%emt 0:08:07]} hxg5 {[%emt 0:00:16]} 18. Nxg5 {[%emt 0:00:30]} Ng6 {[%emt 0:00:28]} 19. g3 {[%emt 0:07:45]} Nd4 {[%emt 0:00:11]} 20. Bxd4 {[%emt 0:03:17]} exd4 {[%emt 0:00:04]} 21. e5 {[%emt 0:09:45]} Bf5 {[%emt 0:03:50]} 22. Nxf4 {[%emt 0:07:05]} Nxf4 {[%emt 0:01:01]} 23. gxf4 {[%emt 0:00:04]} Rh4 {[%emt 0:00:22]} 24. Kg2 {[%emt 0:03:39]} Rxf4 {[%emt 0:00:20]} 25. Rh1 {[%emt 0:06:33]} Ke7 {[%emt 0:01:58]} 26. Nh3 {[%emt 0:03:13]} Re4 {[%emt 0:00:55]} 27. Bf3 {[%emt 0:00:40]} Rxe5 {[%emt 0:03:24]} 28. Rae1 {[%emt 0:00:58]} c6 {[%emt 0:00:47]} 29. Rxe5+ {[%emt 0:00:30]} Bxe5 {[%emt 0:00:05]} 30. Kf1 {[%emt 0:00:30]} Kf6 {[%emt 0:01:16]} 31. Ke2 {[%emt 0:00:27]} d3+ {[%emt 0:02:07]} 32. Kd2 {[%emt 0:00:35]} Rh8 {[%emt 0:01:33]} 33. Ng1 {[%emt 0:00:28]} Bf4+ {[%emt 0:00:18]} 34. Kd1 {[%emt 0:00:22]} Rh2 {[%emt 0:00:25]} 35. Ke1 {[%emt 0:00:45]} Ke5 {[%emt 0:00:50]} 36. Rxh2 {[%emt 0:00:23]} Bxh2 {[%emt 0:00:06]} 37. Kf1 {[%emt 0:00:05]} Kd4 {[%emt 0:04:26]} 38. Bh5 {[%emt 0:00:59]} Bxg1 {[%emt 0:00:06]} 39. Kxg1 {[%emt 0:00:02]} d2 {[%emt 0:00:28]} 40. Bd1 {[%emt 0:01:02]} Kc3 {[%emt 0:00:05]} 41. Kf1 {[%emt 0:01:06]} Bd3+ {[%emt 0:00:05]} 0-1

[Event "Prague Open 2024"]
[Site "Prague"]
[Date "2024.01.09"]
[Round "6.14"]
[White "Gomes, Mary Ann"]
[Black "Dushatov, Timur"]
[Result "1/2-1/2"]
[ECO "A05"]
[WhiteElo "2332"]
[BlackElo "1976"]
[Annotator "TA"]
[PlyCount "86"]
[EventDate "2024.01.02"]
[EventType "swiss"]
[EventCountry "CZE"]
[SourceTitle "playchess.com"]
[Source "ChessBase"]
[SourceQuality "1"]
[TimeControl "40/5400+30:1800+30"]

{[%evp 12,86,4,-2,-5,-24,-22,-30,-22,-26,2,-40,-5,-7,0,0,0,-17,-20,-32,-37,-32,31,29,43,35,39,17,58,3,45,10,17,24,18,24,16,0,29,34,60,58,58,54,63,66,62,54,66,56,75,78,81,60,80,75,88,67,56,55,64,38,38,38,30,24,24,23,23,24,24,23,47,18,20,13,14]} 1. Nf3 {[%emt 0:00:14]} Nf6 {[%emt 0:00:05]} 2. g3 {[%emt 0:00:06]} g6 {[%emt 0:00:16]} 3. b3 {[%emt 0:00:08]} Bg7 {[%emt 0:00:15]} 4. Bb2 {[%emt 0:00:06]} O-O {[%emt 0:00:32]} 5. Bg2 {[%emt 0:00:15]} d6 {[%emt 0:00:09]} 6. d3 {[%emt 0:02:51]} e5 {[%emt 0:00:49]} 7. c4 {[%emt 0:00:06]} Re8 {[%emt 0:00:47]} 8. Nfd2 {[%emt 0:03:07]} a5 {[%emt 0:05:35]} 9. Nc3 {[%emt 0:00:11]} c6 {[%emt 0:00:53] OK. Black has an edge.} 10. Nde4 {[%emt 0:01:45]} Na6 {[%emt 0:05:42] Inaccurate} 11. O-O {[%emt 0:01:17] Inaccurate} Be6 {[%emt 0:03:19] Inaccurate} 12. Nxf6+ {[%emt 0:16:30]} Bxf6 {[%emt 0:04:12]} 13. d4 {[%emt 0:00:34] OK} exd4 {[%emt 0:14:58] Best (Easy)} 14. Ne4 {[%emt 0:00:12] OK} Be5 {[%emt 0:00:52] next ...f5 is good for Black.} 15. f4 {[%emt 0:10:12]} Bg7 {[%emt 0:08:15] [#] Hoping for ...d5. OK} 16. Bxd4 {[%emt 0:03:12] Best (Easy)} f6 {[%emt 0:05:31] Mistake (0.6)} ({Better is} 16... d5 $15 17. Bxg7 Kxg7 18. Qd4+ f6) 17. Nf2 {[%emt 0:07:26]} Nc5 {[%emt 0:11:32]} 18. e4 {[%emt 0:02:17] Prevents Bf5. OK} a4 {[%emt 0:02:32] OK} 19. Qc2 {[%emt 0:04:33]} Bf7 {[%emt 0:09:01] Inaccurate} 20. f5 {[%emt 0:01:30] Mistake (0.6)} ({White should play} 20. b4 $14 Na6 21. b5 (21. Qxa4 Bxc4 22. Rfb1 b5 $15) 21... cxb5 22. cxb5) 20... g5 {[%emt 0:01:13] Inaccurate} 21. Qc3 {[%emt 0:04:37] Inaccurate} Nd7 {[%emt 0:01:32]} 22. Nd3 {[%emt 0:07:45] OK} Ne5 {[%emt 0:00:26] OK} 23. Nxe5 {[%emt 0:07:44] OK} dxe5 {[%emt 0:00:07]} 24. Be3 {[%emt 0:00:05] OK} Re7 {[%emt 0:03:28] Inaccurate} 25. Bf3 {[%emt 0:07:21] OK} axb3 {[%emt 0:00:57] Inaccurate} 26. axb3 {[%emt 0:00:08]} Rd7 {[%emt 0:02:50]} 27. Be2 {[%emt 0:00:38] OK} Qe8 {[%emt 0:01:50]} 28. Rxa8 {[%emt 0:00:52] OK} Qxa8 {[%emt 0:00:06]} 29. Ra1 {[%emt 0:00:35] Prevents Qa2. OK} Qe8 {[%emt 0:00:13]} 30. Kf2 {[%emt 0:01:19]} Bh5 {[%emt 0:00:53] [#] White must now prevent ...Bxe2.} 31. g4 {[%emt 0:00:10] Best} Bf7 {[%emt 0:00:04] OK} 32. Ra7 {[%emt 0:00:54]} Qd8 {[%emt 0:03:28]} 33. Qa1 {[%emt 0:01:59] Strongly threatening Ra8.} Qe7 {[%emt 0:02:03] OK} 34. Qa5 {[%emt 0:03:54] Threatens to win with Bc5.} Bf8 {[%emt 0:00:23][%cal Bg7f8,Bf8b4,Bb4a5,Ba5d8][%mdl 32] EV=20.47. Goes to d8 (dbg)). Best (Easy)} 35. Ra8 {[%emt 0:01:19] And now Bc5 would win. OK} Kg7 {[%emt 0:01:25] Best (Easy)} 36. Qb6 {[%emt 0:05:16] White is much more active. Inaccurate} (36. Qa7 $5 {keeps more tension.} Qb4 37. Qb8 Qd6 38. Qxd6 Bxd6 39. c5) 36... Qb4 {[%emt 0:01:46] Best (Easy)} 37. Qxb4 {[%emt 0:05:26] OK} Bxb4 {[%emt 0:00:06]} 38. Rc8 {[%emt 0:01:45]} Ba5 {[%emt 0:01:00]} 39. Bc5 {[%emt 0:00:12]} Rd8 {[%emt 0:00:06] Repels Ra8. OK} 40. Rxd8 {[%emt 0:00:28] OK} Bxd8 {[%emt 0:00:18]} 41. b4 {[%emt 0:30:40] OK} Be8 {[%emt 0:30:35]} 42. Bd6 {[%emt 0:00:00] Inaccurate} b5 {[%emt 0:00:00] OK} 43. c5 {[%emt 0:00:00]} Bf7 {[%emt 0:00:00] Weighted Error Value: White=0.11 (very precise) /Black=0.14 (very precise) . OK.  Mistake:       	White=1     	Black=1      Inaccurate:     	White=4     	Black=6      OK:         	White=14    	Black=9      Best:        	White=2     	Black=4} 1/2-1/2